bitfinex-derivatives/quotes_BTCF0:USTF0_20240820
["timestamp","ask_amount","ask_price","bid_price","bid_amount"]
[1724142099569,0.0511087,60793.0,60792.0,0.14793164]
[1724142099963,0.1333257,60793.0,60792.0,0.14793164]
[1724142100566,0.084217,60793.0,60792.0,0.14793164]
[1724142101272,0.084217,60793.0,60792.0,0.082219]
[1724142104580,0.197917,60793.0,60792.0,0.082219]
[1724142110174,0.197917,60793.0,60792.0,0.10792273]
[1724142111285,0.34552277,60793.0,60792.0,0.02570373]
[1724142111469,0.082227,60787.0,60786.0,0.082226]
[1724142111785,0.556727,60787.0,60786.0,0.12551594]
[1724142112081,0.556727,60787.0,60786.0,0.10793178]
[1724142112283,0.62223847,60787.0,60786.0,0.12551623]
[1724142113277,0.62223847,60787.0,60786.0,0.10793178]
[1724142113477,0.62223847,60787.0,60786.0,0.12551623]
[1724142113979,0.62323847,60787.0,60786.0,0.12551623]
[1724142114371,0.62423847,60787.0,60786.0,0.12551623]
[1724142114770,0.558727,60787.0,60786.0,0.12551623]
[1724142115168,0.445027,60787.0,60786.0,0.12551623]
[1724142115466,0.3628,60787.0,60786.0,0.12551623]
[1724142117280,0.3628,60787.0,60786.0,0.082226]
[1724142117581,0.3628,60787.0,60786.0,0.12551641]
[1724142118072,0.3628,60787.0,60786.0,0.10793214]
[1724142118073,0.41190515,60787.0,60786.0,0.10793214]
[1724142119679,0.445026,60787.0,60786.0,0.17364986]
[1724142120775,0.445026,60787.0,60786.0,0.10793214]
[1724142121083,0.084226,60787.0,60786.0,0.10793226]
[1724142121268,0.084226,60787.0,60786.0,0.09142266]
[1724142121473,0.23196347,60787.0,60786.0,0.02570626]
[1724142121969,0.084226,60787.0,60786.0,0.0432911]
[1724142122675,0.084226,60787.0,60786.0,0.1090085]
[1724142122676,0.1497077,60787.0,60786.0,0.1090085]
[1724142122878,0.084226,60787.0,60786.0,0.1090085]
[1724142123182,0.084226,60787.0,60786.0,0.10899867]
[1724142123381,0.084226,60787.0,60786.0,0.0432921]
[1724142124274,0.084226,60787.0,60786.0,0.09981132]
[1724142124474,0.084226,60787.0,60786.0,0.12551759]
[1724142125489,0.084226,60787.0,60786.0,0.12551768]
[1724142126085,0.084226,60787.0,60786.0,0.19122041]
[1724142127185,0.084226,60787.0,60786.0,0.12551768]
[1724142127584,0.002,60787.0,60786.0,0.12551768]
[1724142129389,0.084226,60787.0,60786.0,0.19121978]
[1724142129587,0.084226,60787.0,60786.0,0.02570636]
[1724142129982,0.132526,60787.0,60786.0,0.02570636]
[1724142132692,0.1980077,60787.0,60786.0,0.02570636]
[1724142132881,0.082227,60786.0,60785.0,0.082228]
[1724142133089,0.195927,60786.0,60785.0,0.10793523]
[1724142133384,0.195927,60786.0,60785.0,0.10793525]
[1724142134695,0.557727,60786.0,60785.0,0.10793525]
[1724142135286,0.558727,60786.0,60785.0,0.10793525]
[1724142136288,0.558727,60786.0,60785.0,0.17363735]
[1724142139191,0.6242087,60786.0,60785.0,0.10793525]
[1724142139494,0.558727,60786.0,60785.0,0.10793525]
[1724142140694,0.558727,60786.0,60785.0,0.12551989]
[1724142141594,0.558727,60786.0,60785.0,0.12551975]
[1724142146500,0.558727,60786.0,60785.0,0.12551974]
[1724142146898,0.445027,60786.0,60785.0,0.12551974]
[1724142147101,0.445027,60786.0,60785.0,0.10793512]
[1724142148103,0.445027,60786.0,60785.0,0.12551973]
[1724142149692,0.445027,60786.0,60785.0,0.082228]
[1724142149903,0.445027,60786.0,60785.0,0.12551972]
[1724142151811,4.215027,60786.0,60785.0,0.12551972]
[1724142152411,0.445027,60786.0,60785.0,0.12551972]
[1724142153115,0.445027,60786.0,60785.0,0.04329172]
[1724142154808,0.445027,60786.0,60783.0,0.082231]
[1724142154809,0.93796258,60786.0,60783.0,0.06578284]
[1724142155011,0.93796258,60786.0,60777.0,0.06579053]
[1724142155012,0.082238,60778.0,60777.0,0.06579053]
[1724142155318,0.082238,60778.0,60773.0,0.06579053]
[1724142155319,0.082243,60774.0,60773.0,0.06579053]
[1724142155519,0.082243,60774.0,60773.0,0.09150311]
[1724142155520,0.195943,60774.0,60773.0,0.09150311]
[1724142155714,0.195943,60774.0,60773.0,0.03727808]
[1724142156112,0.24509421,60774.0,60773.0,0.10300732]
[1724142157115,0.24509421,60774.0,60773.0,0.03727808]
[1724142157316,0.195943,60774.0,60773.0,0.05484825]
[1724142157915,0.197943,60774.0,60773.0,0.05484825]
[1724142158221,0.197943,60774.0,60773.0,0.02571258]
[1724142158912,0.197943,60774.0,60772.0,0.018865]
[1724142158913,0.082245,60773.0,60772.0,0.018865]
[1724142159223,0.082245,60773.0,60772.0,0.04457767]
[1724142160119,0.082245,60773.0,60772.0,0.0938269]
[1724142160309,0.082245,60773.0,60772.0,0.06811423]
[1724142160713,0.083245,60773.0,60772.0,0.03046744]
[1724142161217,0.084245,60773.0,60772.0,0.03046744]
[1724142162222,0.084245,60773.0,60772.0,0.1384263]
[1724142162920,0.084245,60773.0,60772.0,0.11271344]
[1724142163223,0.084245,60773.0,60772.0,0.1384249]
[1724142168129,0.084245,60773.0,60772.0,0.11271344]
[1724142169424,0.13333878,60773.0,60772.0,0.1619279]
[1724142169731,0.13333878,60773.0,60772.0,0.11271344]
[1724142170123,0.13333878,60773.0,60772.0,0.101111]
[1724142172734,0.084245,60773.0,60772.0,0.101111]
[1724142173631,0.13324124,60773.0,60772.0,0.101111]
[1724142174328,0.13324124,60773.0,60772.0,0.018865]
[1724142176530,0.21548624,60773.0,60772.0,0.018865]
[1724142178622,0.52729,60773.0,60772.0,0.06807946]
[1724142179537,0.52729,60773.0,60772.0,0.018865]
[1724142182241,0.59284813,60773.0,60772.0,0.018865]
[1724142183235,0.52729,60773.0,60772.0,0.018865]
[1724142184238,0.52729,60773.0,60772.0,0.08457723]
[1724142185325,0.64099,60773.0,60772.0,0.08457723]
[1724142188041,0.64099,60773.0,60772.0,0.018865]
[1724142188935,0.52729,60773.0,60772.0,0.018865]
[1724142189238,0.002,60773.0,60772.0,0.12682281]
[1724142189447,0.06533077,60776.0,60775.0,0.082242]
[1724142189639,0.1137,60776.0,60775.0,0.082242]
[1724142189836,0.1137,60776.0,60775.0,0.1079523]
[1724142190239,0.17903077,60776.0,60775.0,0.1079523]
[1724142190432,0.17903077,60776.0,60775.0,0.082242]
[1724142190746,0.18003077,60776.0,60775.0,0.082242]
[1724142191339,0.18103077,60776.0,60775.0,0.082242]
[1724142192943,0.1157,60776.0,60775.0,0.14800461]
[1724142194044,0.002,60776.0,60775.0,0.14800461]
[1724142195443,0.002,60776.0,60775.0,0.17371572]
[1724142195938,0.002,60776.0,60775.0,0.14800461]
[1724142196132,0.002,60776.0,60775.0,0.17371572]
[1724142196934,0.002,60776.0,60775.0,0.10795311]
[1724142197731,0.002,60776.0,60775.0,0.2216522]
[1724142197932,0.24693865,60776.0,60775.0,0.1079522]
[1724142198130,0.19794,60776.0,60775.0,0.17370356]
[1724142198337,0.19794,60776.0,60775.0,0.1079522]
[1724142198338,0.26327077,60776.0,60775.0,0.1079522]
[1724142198634,0.19794,60776.0,60775.0,0.0257102]
[1724142198833,0.082243,60774.0,60773.0,0.06575215]
[1724142199038,0.082242,60775.0,60773.0,0.02571275]
[1724142199237,3.852243,60774.0,60772.0,0.018865]
[1724142199440,3.934486,60774.0,60773.0,0.02571288]
[1724142199738,3.852243,60774.0,60773.0,0.02571288]
[1724142200130,3.853243,60774.0,60773.0,0.02571288]
[1724142201037,3.854243,60774.0,60773.0,0.02571288]
[1724142202536,3.854243,60774.0,60773.0,0.04328345]
[1724142202742,3.967943,60774.0,60773.0,0.04328345]
[1724142204346,4.132429,60774.0,60773.0,0.04328345]
[1724142204544,0.082249,60770.0,60769.0,0.04931656]
[1724142204847,0.082249,60770.0,60767.0,0.04931656]
[1724142204848,0.164502,60768.0,60767.0,0.04931656]
[1724142205038,0.639002,60768.0,60767.0,0.04931656]
[1724142205447,0.639002,60768.0,60763.0,0.06575215]
[1724142205448,0.082253,60767.0,60766.0,0.04931656]
[1724142205637,0.304153,60767.0,60766.0,0.04931656]
[1724142205837,0.082254,60766.0,60765.0,0.04931656]
[1724142206045,0.195954,60766.0,60765.0,0.04931656]
[1724142206645,0.278208,60766.0,60765.0,0.04931656]
[1724142207043,0.082259,60762.0,60760.0,0.04618164]
[1724142207241,0.082272,60753.0,60752.0,0.03818165]
[1724142207544,0.60571074,60753.0,60745.0,0.082282]
[1724142207741,0.082279,60748.0,60746.0,0.082281]
[1724142207943,0.3608,60747.0,60746.0,0.082281]
[1724142208138,0.44323008,60747.0,60746.0,0.082281]
[1724142208451,0.44323008,60747.0,60739.0,0.0546]
[1724142208452,0.082284,60744.0,60742.0,0.082286]
[1724142208749,0.1137,60745.0,60744.0,0.082283]
[1724142209043,0.36095008,60747.0,60746.0,0.082281]
[1724142209245,0.00088,60752.0,60751.0,0.082274]
[1724142209446,0.001,60753.0,60752.0,0.082273]
[1724142209645,0.1137,60757.0,60754.0,0.08227]
[1724142209949,0.1137,60757.0,60755.0,0.082268]
[1724142210146,0.1137,60757.0,60756.0,0.082267]
[1724142210449,4.574e-05,60757.0,60756.0,0.082267]
[1724142211942,0.00104574,60757.0,60756.0,0.082267]
[1724142213945,0.00204574,60757.0,60756.0,0.082267]
[1724142217656,0.001,60757.0,60756.0,0.976027]
[1724142217951,1e-08,60757.0,60756.0,0.976027]
[1724142218149,0.00024684,60759.0,60756.0,1.00174368]
[1724142218349,0.00024684,60759.0,60756.0,0.576027]
[1724142218550,0.00024684,60759.0,60758.0,0.082265]
[1724142219055,0.00024684,60759.0,60758.0,0.576025]
[1724142219657,0.00224684,60759.0,60758.0,0.576025]
[1724142220752,0.00224684,60759.0,60758.0,0.082265]
[1724142232457,0.00224684,60759.0,60758.0,0.196065]
[1724142236170,0.05118558,60759.0,60758.0,0.22178173]
[1724142236352,0.13344858,60759.0,60758.0,0.22178173]
[1724142236560,0.13344858,60759.0,60758.0,0.082265]
[1724142236561,0.08450984,60759.0,60758.0,0.082265]
[1724142236761,0.082267,60756.0,60755.0,0.082268]
[1724142237063,0.196067,60756.0,60755.0,0.082268]
[1724142237256,0.24506512,60756.0,60755.0,0.082268]
[1724142237465,0.29956512,60756.0,60755.0,0.082268]
[1724142237971,0.30056512,60756.0,60755.0,0.082268]
[1724142238359,0.251567,60756.0,60755.0,0.082268]
[1724142238765,0.252567,60756.0,60755.0,0.082268]
[1724142239463,0.252567,60756.0,60748.0,0.55681693]
[1724142239464,0.08228,60749.0,60748.0,0.082278]
[1724142239664,0.55688,60749.0,60748.0,0.082278]
[1724142240271,0.08228,60747.0,60746.0,0.0106718]
[1724142240471,0.08228,60747.0,60746.0,0.0098318]
[1724142240773,0.082281,60746.0,60745.0,0.082281]
[1724142240959,0.082286,60742.0,60741.0,0.09188093]
[1724142241167,0.443086,60742.0,60741.0,0.082286]
[1724142241375,0.3608,60742.0,60741.0,0.082286]
[1724142241572,0.18698862,60746.0,60743.0,0.082284]
[1724142241773,0.137981,60746.0,60743.0,0.082284]
[1724142242073,0.137981,60746.0,60740.0,0.08221693]
[1724142242269,0.082281,60746.0,60738.0,0.11050875]
[1724142242469,0.082281,60746.0,60739.0,0.23330386]
[1724142242673,0.082281,60746.0,60740.0,0.02572346]
[1724142242871,0.3618,60749.0,60741.0,0.02572346]
[1724142243167,0.3618,60749.0,60742.0,0.02572346]
[1724142243168,0.444078,60749.0,60742.0,0.02572346]
[1724142243372,0.443078,60749.0,60743.0,0.02572346]
[1724142243677,0.001,60746.0,60745.0,0.082282]
[1724142244173,0.002,60746.0,60745.0,0.1080041]
[1724142245674,0.001,60746.0,60745.0,0.1080041]
[1724142245875,0.001,60749.0,60748.0,0.164556]
[1724142246073,0.00024684,60759.0,60758.0,0.082265]
[1724142246271,0.00024684,60759.0,60758.0,0.46878132]
[1724142246472,0.00024684,60759.0,60758.0,0.55104632]
[1724142246673,0.04900762,60771.0,60759.0,0.082263]
[1724142246866,0.06534173,60776.0,60759.0,0.082263]
[1724142246867,0.04900762,60773.0,60770.0,0.082248]
[1724142247069,0.0567,60772.0,60771.0,0.082247]
[1724142247478,0.04900762,60775.0,60765.0,0.3608]
[1724142247772,0.04900762,60774.0,60767.0,0.082253]
[1724142248076,0.3608,60776.0,60768.0,0.02571336]
[1724142248077,0.06534173,60775.0,60768.0,0.02571336]
[1724142248276,0.04894349,60769.0,60768.0,0.082251]
[1724142248475,0.0489349,60769.0,60768.0,0.10796368]
[1724142248679,0.3608,60769.0,60768.0,0.10796368]
[1724142248870,0.3608,60769.0,60768.0,0.082251]
[1724142249071,0.40972918,60769.0,60768.0,0.082251]
[1724142249271,0.40972918,60769.0,60765.0,0.00024684]
[1724142249680,0.41172918,60769.0,60765.0,0.00024684]
[1724142250071,0.41572918,60769.0,60765.0,0.00024684]
[1724142250271,0.082252,60768.0,60765.0,0.00024684]
[1724142250472,0.13118118,60768.0,60765.0,0.00024684]
[1724142250674,0.18808118,60768.0,60765.0,0.00024684]
[1724142251369,0.139152,60768.0,60765.0,0.00024684]
[1724142251574,0.3648,60769.0,60765.0,0.00024684]
[1724142251775,0.004,60769.0,60768.0,0.082251]
[1724142252077,0.04892918,60775.0,60774.0,0.082243]
[1724142252285,0.04892918,60777.0,60775.0,0.082242]
[1724142252471,0.04917602,60778.0,60775.0,0.082242]
[1724142252875,0.40972918,60776.0,60775.0,0.082242]
[1724142253071,0.3608,60776.0,60775.0,0.082242]
[1724142253375,0.082244,60774.0,60772.0,0.082246]
[1724142253774,0.04889165,60775.0,60774.0,0.082243]
[1724142253970,0.41969165,60776.0,60775.0,0.082242]
[1724142254174,0.3708,60776.0,60775.0,0.082242]
[1724142255575,0.45304,60776.0,60775.0,0.082242]
[1724142256187,0.44704,60776.0,60775.0,0.082242]
[1724142256777,0.3648,60776.0,60775.0,0.082242]
[1724142257178,0.45304,60776.0,60775.0,0.082242]
[1724142260202,0.50193165,60776.0,60775.0,0.082242]
[1724142260402,0.082245,60773.0,60766.0,0.0564]
[1724142261397,0.082245,60773.0,60772.0,0.082246]
[1724142261591,0.084245,60773.0,60772.0,0.082246]
[1724142263104,0.083245,60773.0,60772.0,0.082246]
[1724142263291,0.086245,60773.0,60772.0,0.082246]
[1724142269107,0.447045,60773.0,60772.0,0.082246]
[1724142270308,0.3648,60773.0,60772.0,0.082246]
[1724142272504,0.04893769,60783.0,60773.0,0.082244]
[1724142272712,0.3608,60780.0,60773.0,0.14783816]
[1724142274198,0.40973769,60780.0,60775.0,0.06559416]
[1724142274398,0.40973769,60780.0,60779.0,0.082236]
[1724142274605,0.41573769,60780.0,60779.0,0.082236]
[1724142275203,0.04927754,60783.0,60778.0,0.08204149]
[1724142275413,0.00024684,60783.0,60782.0,0.525264]
[1724142275604,0.00024684,60783.0,60782.0,0.443032]
[1724142276614,0.00024684,60783.0,60782.0,0.082232]
[1724142276910,0.00024684,60783.0,60782.0,0.443032]
[1724142277112,0.00124684,60783.0,60782.0,0.443032]
[1724142278113,0.00224684,60783.0,60782.0,0.443032]
[1724142278305,0.00224684,60783.0,60782.0,0.45267942]
[1724142279413,0.00224684,60783.0,60782.0,0.52225625]
[1724142280608,0.00224684,60783.0,60782.0,0.45667942]
[1724142280909,0.00224684,60783.0,60782.0,0.52225625]
[1724142281103,0.00224684,60783.0,60782.0,0.45667942]
[1724142282710,0.00224684,60783.0,60782.0,0.45967942]
[1724142282907,0.00124684,60783.0,60782.0,0.45567942]
[1724142283110,0.00224684,60783.0,60782.0,0.45767942]
[1724142284512,0.00124684,60783.0,60782.0,0.45567942]
[1724142284711,0.00224684,60783.0,60782.0,0.45767942]
[1724142285217,0.00124684,60783.0,60782.0,0.45567942]
[1724142285407,0.00224684,60783.0,60782.0,0.61767942]
[1724142285809,0.00224684,60783.0,60782.0,0.61467942]
[1724142286413,0.00224684,60783.0,60782.0,0.09387942]
[1724142286815,0.08447784,60783.0,60782.0,0.09387942]
[1724142287414,0.08447784,60783.0,60782.0,0.09187942]
[1724142287415,0.08347784,60783.0,60782.0,0.09187942]
[1724142287913,0.08447784,60783.0,60782.0,0.09387942]
[1724142288520,0.08447784,60783.0,60782.0,0.083232]
[1724142288521,0.48347784,60783.0,60782.0,0.083232]
[1724142288721,0.97703784,60783.0,60782.0,0.083232]
[1724142289019,0.97603784,60783.0,60782.0,0.083232]
[1724142289322,0.97703784,60783.0,60782.0,0.083232]
[1724142289517,0.57703784,60783.0,60782.0,0.083232]
[1724142290115,0.58003784,60783.0,60782.0,0.083232]
[1724142290708,0.58203784,60783.0,60782.0,0.082232]
[1724142290906,0.08847784,60783.0,60782.0,0.082232]
[1724142291419,0.08947784,60783.0,60782.0,0.082232]
[1724142292614,0.08947784,60783.0,60778.0,0.082236]
[1724142292615,0.082238,60779.0,60778.0,0.082236]
[1724142292816,0.443038,60779.0,60778.0,0.082236]
[1724142294025,0.443038,60779.0,60778.0,0.084236]
[1724142295620,0.446038,60779.0,60778.0,0.082236]
[1724142296528,0.450038,60779.0,60778.0,0.082236]
[1724142297021,0.450038,60779.0,60775.0,0.082242]
[1724142297022,0.082242,60776.0,60775.0,0.082242]
[1724142298527,0.082242,60776.0,60775.0,0.084242]
[1724142300626,0.086242,60776.0,60775.0,0.084242]
[1724142300928,0.086242,60776.0,60775.0,0.082242]
[1724142301224,0.086242,60776.0,60775.0,0.083242]
[1724142301717,0.089242,60776.0,60775.0,0.082242]
[1724142303016,0.007,60776.0,60775.0,0.082242]
[1724142303225,0.007,60776.0,60775.0,0.25576929]
[1724142303431,0.007,60776.0,60775.0,0.24829246]
[1724142304519,0.004,60776.0,60775.0,0.24829246]
[1724142304720,0.004,60776.0,60775.0,0.223584]
[1724142304915,0.004,60776.0,60775.0,0.31493578]
[1724142305120,0.004,60776.0,60775.0,0.3149354]
[1724142305327,0.005,60776.0,60775.0,0.3159354]
[1724142306536,0.005,60776.0,60775.0,0.315941]
[1724142306830,0.001,60776.0,60775.0,0.224584]
[1724142307025,0.001,60776.0,60775.0,0.25029266]
[1724142307328,0.001,60776.0,60775.0,0.31594358]
[1724142307525,0.001,60776.0,60775.0,0.25029266]
[1724142307727,0.002,60776.0,60775.0,0.25029266]
[1724142308421,0.002,60776.0,60775.0,0.17561181]
[1724142308941,0.08424,60776.0,60775.0,0.084242]
[1724142309525,0.08424,60776.0,60775.0,0.002]
[1724142309931,0.1332707,60776.0,60775.0,0.002]
[1724142310227,0.002,60776.0,60775.0,0.084242]
[1724142310435,0.001,60776.0,60775.0,0.084242]
[1724142310626,0.001,60776.0,60775.0,0.17561294]
[1724142310825,0.001,60776.0,60775.0,0.10995179]
[1724142311019,4.21403801,60779.0,60778.0,0.082238]
[1724142311225,4.2620687,60779.0,60778.0,0.082238]
[1724142311424,4.213038,60779.0,60778.0,0.082238]
[1724142312331,0.443038,60779.0,60778.0,0.10794784]
[1724142312530,0.443038,60779.0,60778.0,0.10894784]
[1724142314025,0.444038,60779.0,60778.0,0.10894784]
[1724142314332,0.50937973,60779.0,60778.0,0.10894784]
[1724142314629,0.444038,60779.0,60778.0,0.10894784]
[1724142314833,0.444038,60779.0,60778.0,0.17460899]
[1724142315032,0.50937973,60779.0,60778.0,0.10894784]
[1724142315233,0.50937973,60779.0,60778.0,0.17460899]
[1724142316225,0.444038,60779.0,60778.0,0.10894784]
[1724142316444,0.5094766,60779.0,60778.0,0.10894784]
[1724142316638,0.444038,60779.0,60778.0,0.10894784]
[1724142316834,0.50947714,60779.0,60778.0,0.10894784]
[1724142317026,0.50947759,60779.0,60778.0,0.10894784]
[1724142317222,0.444038,60779.0,60778.0,0.10894784]
[1724142318239,0.5095082,60779.0,60778.0,0.083238]
[1724142318430,0.5095082,60779.0,60778.0,0.10894739]
[1724142319228,0.5095082,60779.0,60778.0,0.083238]
[1724142319435,0.444038,60779.0,60778.0,0.1490072]
[1724142319641,0.444038,60779.0,60778.0,0.14900737]
[1724142320027,0.444038,60779.0,60778.0,0.14900735]
[1724142320227,0.50951143,60779.0,60778.0,0.14900735]
[1724142321839,0.50951143,60779.0,60778.0,0.083238]
[1724142322531,0.50951143,60779.0,60778.0,0.14900765]
[1724142323037,0.444038,60779.0,60778.0,0.083238]
[1724142323342,0.444038,60779.0,60778.0,0.1089473]
[1724142323740,0.50951143,60779.0,60778.0,0.1089473]
[1724142324738,0.444038,60779.0,60778.0,0.1089473]
[1724142324933,0.50951143,60779.0,60778.0,0.1089473]
[1724142325937,0.50951143,60779.0,60778.0,0.083238]
[1724142326234,0.50951143,60779.0,60778.0,0.10894727]
[1724142327332,0.50951143,60779.0,60778.0,0.1747182]
[1724142327637,0.50950823,60779.0,60778.0,0.10894727]
[1724142328245,0.526275,60779.0,60778.0,0.09248163]
[1724142328536,0.526275,60779.0,60774.0,0.09152671]
[1724142328537,0.082242,60775.0,60774.0,0.04932793]
[1724142328952,0.082243,60774.0,60773.0,0.04932793]
[1724142329135,0.082244,60773.0,60772.0,0.04932793]
[1724142329546,0.082246,60772.0,60771.0,0.082247]
[1724142329934,0.082246,60772.0,60770.0,0.04957477]
[1724142330134,0.55195968,60771.0,60770.0,0.00024684]
[1724142330541,0.65035666,60771.0,60770.0,0.00024684]
[1724142331338,0.55195968,60771.0,60770.0,0.00024684]
[1724142331647,0.60696993,60771.0,60770.0,0.00024684]
[1724142332044,0.525294,60771.0,60770.0,0.00024684]
[1724142332339,0.53522559,60771.0,60770.0,0.00024684]
[1724142333342,0.53522559,60771.0,60770.0,0.00124684]
[1724142338741,0.60045765,60771.0,60770.0,0.00124684]
[1724142341544,0.53522559,60771.0,60770.0,0.00124684]
[1724142345250,0.68270465,60771.0,60770.0,0.00124684]
[1724142345452,0.53522559,60771.0,60770.0,0.00124684]
[1724142346346,0.61747259,60771.0,60770.0,0.00124684]
[1724142346554,0.53522559,60771.0,60770.0,0.00124684]
[1724142346955,0.61747259,60771.0,60770.0,0.00124684]
[1724142348047,0.62947259,60771.0,60770.0,0.00124684]
[1724142350150,0.54722559,60771.0,60770.0,0.00024684]
[1724142350342,0.64147259,60771.0,60770.0,0.00024684]
[1724142350549,0.55922559,60771.0,60770.0,0.00024684]
[1724142350948,0.56022559,60771.0,60770.0,0.00024684]
[1724142351150,0.54722559,60771.0,60770.0,0.00024684]
[1724142351444,0.56022559,60771.0,60770.0,0.00024684]
[1724142353050,0.92102559,60771.0,60770.0,0.00024684]
[1724142355163,1.00270152,60771.0,60770.0,0.00024684]
[1724142355350,1.52361903,60771.0,60770.0,0.00024684]
[1724142357661,1.02993903,60771.0,60770.0,0.00024684]
[1724142358452,1.0617109,60771.0,60770.0,0.00024684]
[1724142360554,1.06171324,60771.0,60770.0,0.00024684]
[1724142361551,1.95539324,60771.0,60770.0,0.00024684]
[1724142361762,2.17764024,60771.0,60770.0,8.4e-07]
[1724142362067,2.29194847,60771.0,60770.0,8.4e-07]
[1724142362770,2.20970147,60771.0,60770.0,8.4e-07]
[1724142362960,2.09539324,60771.0,60770.0,8.4e-07]
[1724142363156,5.86539324,60771.0,60770.0,8.4e-07]
[1724142363866,5.86539874,60771.0,60770.0,8.4e-07]
[1724142364262,5.94764574,60771.0,60770.0,8.4e-07]
[1724142364662,5.86539863,60771.0,60770.0,8.4e-07]
[1724142365065,1.55539863,60771.0,60770.0,8.4e-07]
[1724142365363,1.52362338,60771.0,60770.0,8.4e-07]
[1724142365568,1.02994338,60771.0,60770.0,8.4e-07]
[1724142368261,4.79994338,60771.0,60770.0,8.4e-07]
[1724142374673,4.71769638,60771.0,60770.0,8.4e-07]
[1724142374864,0.94769638,60771.0,60770.0,8.4e-07]
[1724142375265,4.71769638,60771.0,60770.0,8.4e-07]
[1724142376167,3.99609638,60771.0,60770.0,8.4e-07]
[1724142376495,4.71769638,60771.0,60770.0,8.4e-07]
[1724142377766,4.71769334,60771.0,60770.0,8.4e-07]
[1724142377961,0.86544634,60771.0,60770.0,8.4e-07]
[1724142378176,0.77326775,60771.0,60770.0,8.4e-07]
[1724142378377,0.8283599,60771.0,60770.0,0.08224984]
[1724142378566,0.7466,60771.0,60770.0,0.08224984]
[1724142379075,0.828847,60771.0,60770.0,0.08224984]
[1724142379873,0.9106069,60771.0,60770.0,0.08224984]
[1724142380663,0.828847,60771.0,60770.0,0.08224984]
[1724142385574,0.107247,60771.0,60770.0,0.08224984]
[1724142385781,0.468047,60771.0,60770.0,0.08224984]
[1724142386773,0.107247,60771.0,60770.0,0.08224984]
[1724142386973,0.468047,60771.0,60770.0,0.08224984]
[1724142389281,0.3858,60771.0,60770.0,0.08224984]
[1724142389573,0.45115954,60771.0,60770.0,0.08224984]
[1724142389777,0.468047,60771.0,60770.0,0.08224984]
[1724142391678,0.468047,60771.0,60770.0,8.4e-07]
[1724142393270,0.468047,60771.0,60770.0,0.08224984]
[1724142393468,0.6320539,60771.0,60770.0,8.4e-07]
[1724142393775,0.57696001,60771.0,60770.0,8.4e-07]
[1724142395778,0.57696105,60771.0,60770.0,8.4e-07]
[1724142397268,0.65920805,60771.0,60770.0,8.4e-07]
[1724142397484,0.75730765,60771.0,60770.0,8.4e-07]
[1724142397983,0.65920805,60771.0,60770.0,8.4e-07]
[1724142398184,0.75730599,60771.0,60770.0,8.4e-07]
[1724142398675,0.65920805,60771.0,60770.0,8.4e-07]
[1724142398881,0.7573154,60771.0,60770.0,8.4e-07]
[1724142400469,0.75731829,60771.0,60770.0,8.4e-07]
[1724142400673,0.65920805,60771.0,60770.0,8.4e-07]
[1724142402179,0.69098006,60771.0,60770.0,8.4e-07]
[1724142402487,0.65920805,60771.0,60770.0,8.4e-07]
[1724142404589,0.7572953,60771.0,60770.0,8.4e-07]
[1724142404889,0.65920805,60771.0,60770.0,8.4e-07]
[1724142406082,0.7572849,60771.0,60770.0,8.4e-07]
[1724142406278,0.75728281,60771.0,60770.0,8.4e-07]
[1724142407391,0.65920805,60771.0,60770.0,8.4e-07]
[1724142408390,0.75726642,60771.0,60770.0,8.4e-07]
[1724142408580,0.65920805,60771.0,60770.0,8.4e-07]
[1724142409193,0.75726755,60771.0,60770.0,8.4e-07]
[1724142409585,0.65920805,60771.0,60770.0,8.4e-07]
[1724142410097,0.75726755,60771.0,60770.0,8.4e-07]
[1724142412595,0.65920805,60771.0,60770.0,8.4e-07]
[1724142412983,0.29840805,60771.0,60770.0,8.4e-07]
[1724142413188,1.02000805,60771.0,60770.0,8.4e-07]
[1724142414985,1.05178055,60771.0,60770.0,8.4e-07]
[1724142415392,1.02000805,60771.0,60770.0,8.4e-07]
[1724142419199,1.05178061,60771.0,60770.0,8.4e-07]
[1724142419603,0.33018061,60771.0,60770.0,8.4e-07]
[1724142419795,1.05178061,60771.0,60770.0,8.4e-07]
[1724142420096,1.02000805,60771.0,60770.0,8.4e-07]
[1724142421998,1.05178061,60771.0,60770.0,8.4e-07]
[1724142426801,1.05178233,60771.0,60770.0,8.4e-07]
[1724142431716,1.05178253,60771.0,60770.0,8.4e-07]
[1724142433403,1.13402953,60771.0,60770.0,8.4e-07]
[1724142435108,1.13402953,60771.0,60760.0,0.00012465]
[1724142435109,2.21799145,60771.0,60760.0,0.00012465]
[1724142435313,0.968383,60761.0,60760.0,0.00012465]
[1724142435518,1.02682453,60761.0,60760.0,0.00012465]
[1724142436012,1.02683145,60761.0,60760.0,0.00012465]
[1724142437111,0.27345489,60761.0,60760.0,0.00012465]
[1724142437303,0.99505489,60761.0,60760.0,0.00012465]
[1724142438415,0.99705489,60761.0,60760.0,0.00012465]
[1724142439106,1.00205489,60761.0,60760.0,0.00012465]
[1724142440217,1.01594151,60761.0,60760.0,0.00012465]
[1724142440710,1.1139427,60761.0,60760.0,0.00012465]
[1724142441912,1.0159419,60761.0,60760.0,0.00012465]
[1724142442116,1.11390709,60761.0,60760.0,0.00012465]
[1724142443209,1.0159419,60761.0,60760.0,0.00012465]
[1724142445006,0.8514199,60761.0,60760.0,0.00012465]
[1724142445201,0.90637255,60761.0,60760.0,0.00012465]
[1724142445412,0.814861,60761.0,60760.0,0.00012465]
[1724142448213,0.84153131,60761.0,60760.0,0.00012465]
[1724142449903,0.84153205,60761.0,60760.0,0.00012465]
[1724142451111,0.84153157,60761.0,60760.0,0.00012465]
[1724142451410,0.814861,60761.0,60760.0,0.00012465]
[1724142451803,0.89653156,60761.0,60760.0,0.00012465]
[1724142452209,0.814861,60761.0,60760.0,0.00012465]
[1724142452411,0.84153138,60761.0,60760.0,0.00012465]
[1724142452812,0.814861,60761.0,60760.0,0.00012465]
[1724142453316,0.7326,60761.0,60760.0,0.57614665]
[1724142453509,0.011,60761.0,60760.0,0.97614665]
[1724142453714,0.07634941,60761.0,60760.0,1.02543373]
[1724142453915,0.011,60761.0,60760.0,1.02543373]
[1724142454215,0.07634941,60761.0,60760.0,1.02543338]
[1724142454611,0.07634941,60761.0,60760.0,0.97614665]
[1724142455214,0.15861041,60761.0,60760.0,0.97614665]
[1724142457318,0.15861041,60761.0,60760.0,0.57614665]
[1724142458620,0.093261,60761.0,60760.0,0.57614665]
[1724142459519,0.15862246,60761.0,60760.0,0.57614665]
[1724142460015,0.093261,60761.0,60760.0,0.57614665]